bitfinex-derivatives/quotes_BTCF0:USTF0_20250828
["timestamp","ask_amount","ask_price","bid_price","bid_amount"]
[1756343914450,0.57545732,111610.0,111600.0,0.14312]
[1756343915050,1.43768618,111610.0,111590.0,0.09232]
[1756343915349,1.21588102,111610.0,111600.0,0.02967]
[1756343915645,1.32621376,111610.0,111600.0,0.02967]
[1756343916347,1.32321376,111610.0,111600.0,0.02967]
[1756343916549,1.32521376,111610.0,111600.0,0.02967]
[1756343917343,1.32621376,111610.0,111600.0,0.02967]
[1756343917744,1.25621376,111610.0,111590.0,0.06804]
[1756343918053,0.31222886,111600.0,111590.0,0.02977]
[1756343918247,0.66616618,111600.0,111590.0,0.02967]
[1756343919849,0.35393732,111600.0,111590.0,0.02967]
[1756343920050,0.66616618,111600.0,111590.0,0.04589]
[1756343920248,0.02693732,111600.0,111590.0,0.04589]
[1756343920444,0.85589732,111600.0,111590.0,0.14312]
[1756343920651,0.85789732,111600.0,111590.0,0.14312]
[1756343922159,0.85489732,111600.0,111590.0,0.45534886]
[1756343922458,0.85889732,111600.0,111590.0,0.04589]
[1756343922657,1.54112618,111600.0,111590.0,0.04589]
[1756343923158,1.22989732,111600.0,111590.0,0.04589]
[1756343923850,0.85985732,111600.0,111590.0,0.14312]
[1756343925153,1.74208618,111600.0,111580.0,0.06804]
[1756343925358,1.49218618,111600.0,111580.0,0.06804]
[1756343925549,1.49218618,111600.0,111580.0,0.09976]
[1756343925750,0.33067801,111590.0,111580.0,0.0001]
[1756343925950,0.67461533,111590.0,111570.0,0.08806931]
[1756343926151,0.31222886,111580.0,111570.0,0.16324931]
[1756343926362,0.85281732,111580.0,111570.0,0.16314931]
[1756343926556,0.85281732,111580.0,111570.0,0.47537817]
[1756343926952,0.02393732,111580.0,111570.0,0.47537817]
[1756343927153,0.16229732,111580.0,111570.0,0.56500127]
[1756343927355,0.50021732,111580.0,111570.0,0.56500127]
[1756343928353,0.81977732,111580.0,111570.0,0.65500127]
[1756343928754,0.82277732,111580.0,111570.0,0.65500127]
[1756343929058,0.02793732,111580.0,111570.0,0.65500127]
[1756343929257,0.02493732,111580.0,111570.0,0.65500127]
[1756343929458,0.02593732,111580.0,111570.0,0.65500127]
[1756343929854,0.02593732,111580.0,111570.0,0.25277241]
[1756343930058,0.02593732,111580.0,111570.0,0.65500127]
[1756343930559,0.002,111580.0,111570.0,0.90500127]
[1756343932260,0.001,111580.0,111570.0,0.90500127]
[1756343932460,0.01854915,111590.0,111580.0,0.1752851]
[1756343932660,0.04239286,111590.0,111580.0,0.54496396]
[1756343933658,0.04239286,111590.0,111580.0,0.63496396]
[1756343933659,0.04339286,111590.0,111580.0,0.63496396]
[1756343934561,0.01944915,111590.0,111580.0,0.54496396]
[1756343934854,0.01944915,111590.0,111580.0,0.63496396]
[1756343935262,0.02044915,111590.0,111580.0,0.63496396]
[1756343936552,0.02044915,111590.0,111580.0,0.54496396]
[1756343938165,0.02044915,111590.0,111580.0,0.63496396]
[1756343940263,0.02044915,111590.0,111580.0,0.54496396]
[1756343940464,0.02044915,111590.0,111580.0,0.63496396]
[1756343940966,0.02044915,111590.0,111580.0,0.54496396]
[1756343942965,0.02044915,111590.0,111580.0,0.63496396]
[1756343943467,0.0001,111600.0,111590.0,0.1317371]
[1756343943671,0.11562758,111610.0,111600.0,0.2336591]
[1756343943969,0.11552758,111610.0,111600.0,0.54588796]
[1756343944168,0.51225599,111620.0,111610.0,0.14406]
[1756343944375,0.51215599,111620.0,111610.0,0.45628886]
[1756343944558,0.01835599,111620.0,111610.0,0.54587986]
[1756343944766,2.55189234,111630.0,111620.0,0.14406]
[1756343944962,2.57571101,111630.0,111620.0,0.45628886]
[1756343945466,2.57595101,111630.0,111620.0,0.45628886]
[1756343945768,2.57591101,111630.0,111620.0,0.14406]
[1756343945963,2.62307105,111630.0,111620.0,0.14406]
[1756343946271,2.59915238,111630.0,111620.0,0.45628886]
[1756343946463,1.77015238,111630.0,111620.0,0.45628886]
[1756343946659,2.59915238,111630.0,111620.0,0.45628886]
[1756343947967,1.77015238,111630.0,111620.0,0.54587186]
[1756343948169,2.59899238,111630.0,111620.0,0.54587186]
[1756343948369,2.67530583,111630.0,111620.0,0.54587186]
[1756343949961,0.97066583,111630.0,111620.0,0.14406]
[1756343950167,0.97066583,111630.0,111620.0,0.45628886]
[1756343951473,0.14182583,111630.0,111620.0,0.45628886]
[1756343951676,0.97066583,111630.0,111620.0,0.45628886]
[1756343952275,0.77287659,111630.0,111620.0,0.45628886]
[1756343952973,0.77487659,111630.0,111620.0,0.45628886]
[1756343953380,0.83068,111630.0,111620.0,0.54587186]
[1756343953673,0.87539155,111630.0,111620.0,0.54587186]
[1756343953873,0.94583151,111630.0,111620.0,0.54587186]
[1756343954766,0.94583151,111630.0,111620.0,0.45628886]
[1756343954970,0.94683151,111630.0,111620.0,0.45628886]
[1756343955175,0.94683151,111630.0,111620.0,0.54587186]
[1756343958378,0.94683151,111630.0,111620.0,0.233643]
[1756343958679,0.94683151,111630.0,111620.0,0.54587186]
[1756343959473,0.11815151,111630.0,111620.0,0.54587186]
[1756343959678,0.74395151,111630.0,111620.0,0.54587186]
[1756343959879,0.11815151,111630.0,111620.0,0.54587186]
[1756343960081,0.79903151,111630.0,111620.0,0.54587186]
[1756343962176,0.11815151,111630.0,111620.0,0.54587186]
[1756343962389,0.11815151,111630.0,111620.0,0.63587186]
[1756343962681,0.11815151,111630.0,111620.0,0.88587186]
[1756343962876,0.11815151,111630.0,111620.0,0.79587186]
[1756343963784,0.11815151,111630.0,111620.0,0.88587186]
[1756343964577,0.11815151,111630.0,111620.0,0.79587186]
[1756343971382,0.11815151,111630.0,111620.0,0.88587186]
[1756343971688,0.07343996,111630.0,111620.0,0.88587186]
[1756343972083,0.11831713,111630.0,111620.0,0.88587186]
[1756343972286,0.003,111630.0,111620.0,0.88587186]
[1756343975088,0.06368695,111640.0,111630.0,0.188605]
[1756343975392,0.06358695,111640.0,111630.0,0.59083386]
[1756343976194,0.1379408,111640.0,111630.0,0.59083386]
[1756343976396,0.06558695,111640.0,111630.0,0.59083386]
[1756343976699,0.00212,111650.0,111640.0,0.1885969]
[1756343976700,0.0001,111650.0,111640.0,0.1885969]
[1756343976890,0.00202,111660.0,111640.0,0.1885969]
[1756343976891,0.00535,111660.0,111650.0,0.1885889]
[1756343977090,0.07411872,111660.0,111650.0,0.50081776]
[1756343977293,0.02909767,111660.0,111650.0,0.50081776]
[1756343977795,0.02909767,111660.0,111650.0,0.41125886]
[1756343978695,0.03109767,111660.0,111650.0,0.50081776]
[1756343979194,0.103761,111660.0,111650.0,0.50081776]
[1756343980490,0.14438802,111660.0,111650.0,0.50081776]
[1756343980697,0.97270802,111660.0,111650.0,0.50081776]
[1756343980899,0.97795802,111660.0,111650.0,0.1885889]
[1756343981202,0.97795802,111660.0,111650.0,0.50081776]
[1756343982892,0.97795802,111660.0,111650.0,0.1885889]
[1756343983097,0.97795802,111660.0,111650.0,0.50081776]
[1756343983292,0.97593802,111660.0,111650.0,0.50081776]
[1756343983500,0.97795802,111660.0,111650.0,0.50081776]
[1756343983900,0.97795802,111660.0,111650.0,0.41125886]
[1756343986499,0.97795802,111660.0,111650.0,0.50081776]
[1756343986690,0.97795802,111660.0,111650.0,0.1885889]
[1756343986893,0.97795802,111660.0,111650.0,0.50081776]
[1756343988804,0.14438802,111660.0,111650.0,0.59081776]
[1756343989005,0.12054035,111660.0,111650.0,0.59081776]
[1756343989700,0.12054035,111660.0,111650.0,0.50081776]
[1756343991204,0.12054035,111660.0,111650.0,0.1885889]
[1756343991401,0.12256035,111660.0,111650.0,0.50081776]
[1756343991908,0.12054035,111660.0,111650.0,0.50081776]
[1756343992503,0.12256035,111660.0,111650.0,0.50081776]
[1756343993809,0.12256035,111660.0,111650.0,0.41125886]
[1756343994007,0.12054035,111660.0,111650.0,0.50081776]
[1756343994407,0.12256035,111660.0,111650.0,0.50081776]
[1756343999108,0.12579035,111660.0,111650.0,0.50081776]
[1756343999310,0.12256035,111660.0,111650.0,0.50081776]
[1756343999810,0.12054035,111660.0,111650.0,0.50081776]
[1756344000214,0.12256035,111660.0,111650.0,0.50081776]
[1756344001011,0.12054035,111660.0,111650.0,0.50081776]
[1756344001412,0.12256035,111660.0,111650.0,0.50081776]
[1756344001612,0.12256035,111660.0,111650.0,0.1885889]
[1756344001812,0.12579035,111660.0,111650.0,0.50081776]
[1756344002008,0.12256035,111660.0,111650.0,0.50081776]
[1756344002809,0.12054035,111660.0,111650.0,0.50081776]
[1756344003916,0.12579035,111660.0,111650.0,0.50081776]
[1756344004110,0.12256035,111660.0,111650.0,0.41125886]
[1756344004514,0.12377035,111660.0,111650.0,0.41125886]
[1756344004715,0.12579035,111660.0,111650.0,0.41125886]
[1756344005018,1.03801921,111660.0,111650.0,0.09903]
[1756344005412,1.03599921,111660.0,111640.0,0.36182385]
[1756344005611,0.83325,111650.0,111640.0,0.38406385]
[1756344005814,0.83325,111650.0,111640.0,0.69629271]
[1756344006012,1.18325,111650.0,111640.0,0.69629271]
[1756344006215,1.18325,111650.0,111640.0,0.38406385]
[1756344007015,1.17325,111650.0,111640.0,0.38406385]
[1756344007217,1.17525,111650.0,111640.0,0.38406385]
[1756344007817,1.73747886,111650.0,111630.0,0.02604]
[1756344008022,0.31747886,111640.0,111630.0,0.03865]
[1756344008323,0.62747886,111640.0,111630.0,0.06469]
[1756344008523,0.62747886,111640.0,111630.0,0.03865]
[1756344009020,0.00525,111630.0,111620.0,0.06479]
[1756344009212,1.48345808,111630.0,111620.0,0.09849]
[1756344009418,1.17122922,111630.0,111620.0,0.09849]
[1756344009920,1.20122922,111630.0,111620.0,0.09849]
[1756344010718,1.20122922,111630.0,111620.0,0.06469]
[1756344010920,1.20122922,111630.0,111620.0,0.03865]
[1756344011628,0.85122922,111630.0,111620.0,0.09849]
[1756344012021,1.23122922,111630.0,111620.0,0.09849]
[1756344012222,0.02322922,111630.0,111620.0,0.09849]
[1756344012425,1.19126922,111630.0,111620.0,0.09849]
[1756344012618,0.85126922,111630.0,111620.0,0.09849]
[1756344012820,0.84924922,111630.0,111620.0,0.41071886]
[1756344013025,0.85126922,111630.0,111620.0,0.41071886]
[1756344016128,0.85130922,111630.0,111620.0,0.41071886]
[1756344017031,0.02322922,111630.0,111620.0,0.41071886]
[1756344017230,0.85130922,111630.0,111620.0,0.41071886]
[1756344021530,0.02120922,111630.0,111620.0,0.41071886]
[1756344021737,0.85130922,111630.0,111620.0,0.41071886]
[1756344023544,0.85130922,111630.0,111620.0,0.45827886]
[1756344023844,0.85130922,111630.0,111620.0,0.41071886]
[1756344024046,0.85130922,111630.0,111620.0,0.45827886]
[1756344024248,0.85130922,111630.0,111620.0,0.54786196]
[1756344024545,0.85130922,111630.0,111620.0,0.45827886]
[1756344025637,0.85130922,111630.0,111620.0,0.63786196]
[1756344026144,0.02322922,111630.0,111620.0,0.54786196]
[1756344026544,0.02322922,111630.0,111620.0,0.14605]
[1756344026735,0.85130922,111630.0,111620.0,0.45827886]
[1756344027447,0.85126922,111630.0,111620.0,0.54786186]
[1756344028649,0.02322922,111630.0,111620.0,0.54786186]
[1756344036261,0.01797922,111630.0,111620.0,0.54786186]
[1756344036457,0.01999922,111630.0,111620.0,0.54786186]
[1756344037057,0.01797922,111630.0,111620.0,0.54786186]
[1756344037855,0.01797922,111630.0,111620.0,0.63786186]
[1756344038559,0.0001,111640.0,111630.0,0.232445]
[1756344038758,0.56855663,111650.0,111640.0,0.145747]
[1756344038953,0.84617663,111650.0,111640.0,0.54466586]
[1756344039151,0.88938663,111650.0,111640.0,0.54466586]
[1756344039552,0.03821663,111650.0,111640.0,0.54466586]
[1756344039753,0.06142663,111650.0,111640.0,0.54466586]
[1756344039960,0.06142663,111650.0,111640.0,0.232437]
[1756344040159,0.06142663,111650.0,111640.0,0.54466586]
[1756344040650,0.06242663,111650.0,111640.0,0.54466576]
[1756344040856,0.01921663,111650.0,111640.0,0.54466576]
[1756344041062,0.86713663,111650.0,111640.0,0.54466576]
[1756344041548,0.89034663,111650.0,111640.0,0.54466576]
[1756344041952,0.06242663,111650.0,111640.0,0.54466576]
[1756344042156,0.89034663,111650.0,111640.0,0.54466576]
[1756344042957,0.01921663,111650.0,111640.0,0.54466576]
[1756344043155,0.01921663,111650.0,111640.0,0.85689462]
[1756344043550,0.01921663,111650.0,111640.0,0.54466576]
[1756344044348,0.01921663,111650.0,111640.0,0.56449459]
[1756344045255,0.03921663,111650.0,111640.0,0.56449459]
[1756344045456,0.7902604,111660.0,111640.0,0.56449459]
[1756344045659,0.7902604,111660.0,111650.0,0.45509886]
[1756344047859,0.7922604,111660.0,111650.0,0.45509886]
[1756344048662,0.86461568,111660.0,111650.0,0.45509886]
[1756344048856,0.11878568,111660.0,111650.0,0.54465776]
[1756344049050,0.94662568,111660.0,111650.0,0.54465776]
[1756344049660,0.11878568,111660.0,111650.0,0.54465776]
[1756344050460,0.11878568,111660.0,111650.0,0.63465776]
[1756344050655,0.11878568,111660.0,111650.0,0.54465776]
[1756344051054,0.11878568,111660.0,111650.0,0.63465776]
[1756344051856,0.11878568,111660.0,111650.0,0.54465776]
[1756344052064,0.07435528,111660.0,111650.0,0.88465776]
[1756344053068,0.07435528,111660.0,111650.0,0.63465776]
[1756344053366,0.07435528,111660.0,111650.0,0.54465776]
[1756344053566,0.07435528,111660.0,111650.0,0.63465776]
[1756344053964,0.01350528,111660.0,111650.0,0.63465776]
[1756344054168,0.828,111670.0,111660.0,0.2324175]
[1756344054367,0.87223284,111670.0,111660.0,0.56493624]
[1756344054868,0.96227284,111670.0,111660.0,0.56493624]
[1756344055269,0.96227284,111670.0,111660.0,0.47538874]
[1756344055270,0.15145284,111670.0,111660.0,0.47538874]
[1756344055570,0.99007284,111670.0,111660.0,0.47538874]
[1756344055972,0.97933284,111670.0,111660.0,0.47538874]
[1756344056766,0.94446284,111670.0,111660.0,0.56493964]
[1756344057164,0.96199284,111670.0,111660.0,0.56493964]
[1756344057471,1.05246003,111670.0,111660.0,0.56493964]
[1756344057670,1.07623409,111670.0,111660.0,0.56493964]
[1756344058882,1.07623409,111670.0,111660.0,0.16315988]
[1756344059068,1.07623409,111670.0,111660.0,0.47538874]
[1756344059968,1.07623409,111670.0,111660.0,0.56493964]
[1756344060274,1.07623409,111670.0,111660.0,0.25271078]
[1756344060473,1.07623409,111670.0,111660.0,0.47538874]
[1756344060974,0.24851409,111670.0,111660.0,0.56493964]
[1756344061272,1.05356003,111670.0,111660.0,0.56493964]
[1756344061473,1.05356003,111670.0,111660.0,0.25271078]
[1756344061774,1.05356003,111670.0,111660.0,0.56493964]
[1756344062467,0.99346588,111670.0,111660.0,0.56493964]
[1756344062670,0.96969003,111670.0,111660.0,0.56493964]
[1756344062966,1.03818003,111670.0,111660.0,0.56493964]
[1756344063165,1.05536003,111670.0,111660.0,0.56493964]
[1756344064475,1.39536003,111670.0,111660.0,0.56493964]
[1756344064777,1.40610003,111670.0,111660.0,0.10506988]
[1756344064973,1.40610003,111670.0,111660.0,0.47634874]
[1756344065174,1.40610003,111670.0,111660.0,0.44178874]
[1756344065376,0.02986,111660.0,111650.0,0.02968]
[1756344065576,0.13683262,111660.0,111650.0,0.14534]
[1756344065879,0.13683262,111660.0,111650.0,0.45756886]
[1756344066083,0.13683262,111660.0,111650.0,0.54712776]
[1756344066381,0.95465262,111660.0,111650.0,0.54712776]
[1756344066575,0.96539262,111660.0,111650.0,0.45756886]
[1756344067181,0.12609262,111660.0,111650.0,0.54712766]
[1756344067481,0.95453262,111660.0,111650.0,0.54712766]
[1756344067882,0.95473262,111660.0,111650.0,0.54712766]
[1756344068086,0.95473262,111660.0,111650.0,0.2348988]
[1756344068281,0.95473262,111660.0,111650.0,0.54712766]
[1756344068478,0.96547262,111660.0,111650.0,0.45756886]
[1756344069478,0.95557262,111660.0,111650.0,0.54712766]
[1756344069683,0.95557262,111660.0,111650.0,0.54912766]
[1756344070181,0.95557262,111660.0,111650.0,0.54712766]
[1756344070383,0.95557262,111660.0,111650.0,0.54912766]
[1756344071475,0.96631262,111660.0,111650.0,0.40051886]
[1756344071691,1.83854148,111660.0,111650.0,0.002]
[1756344072985,1.00906148,111660.0,111650.0,0.03168]
[1756344073183,1.52854148,111660.0,111650.0,0.04847]
[1756344073376,1.52854148,111660.0,111650.0,0.02968]
[1756344073581,1.21631262,111660.0,111650.0,0.02968]
[1756344073783,1.53631262,111660.0,111650.0,0.02968]
[1756344074084,1.52631262,111660.0,111650.0,0.02968]
[1756344074288,1.23631262,111660.0,111650.0,0.02968]
[1756344074491,1.17326262,111660.0,111640.0,0.42078769]
[1756344074682,0.11819,111650.0,111640.0,0.47739769]
[1756344075588,0.11719,111650.0,111640.0,0.47739769]
[1756344076188,0.11719,111650.0,111640.0,0.47939769]
[1756344077689,0.11719,111650.0,111640.0,0.05150883]
[1756344077690,0.95941886,111650.0,111640.0,0.05150883]
[1756344077892,0.95941886,111650.0,111640.0,0.02182883]
[1756344078189,0.95941886,111650.0,111640.0,0.05150883]
[1756344078582,1.47651,111650.0,111640.0,0.16716883]
[1756344079289,1.47651,111650.0,111640.0,0.04950883]
[1756344079483,1.47651,111650.0,111630.0,0.37127886]
[1756344079484,0.11819,111640.0,111630.0,0.38040886]
[1756344079686,0.96596897,111640.0,111630.0,0.45756886]
[1756344080693,0.96596897,111640.0,111630.0,0.45856886]
[1756344081793,0.96596897,111640.0,111630.0,0.14634]
[1756344081993,0.96596897,111640.0,111630.0,0.45856886]
[1756344082492,0.96596897,111640.0,111630.0,0.14634]
[1756344082692,0.96596897,111640.0,111630.0,0.45856886]
[1756344082887,1.31596897,111640.0,111630.0,0.14634]
[1756344083092,1.62819783,111640.0,111630.0,0.03068]
[1756344083293,1.62819783,111640.0,111630.0,0.02968]
[1756344085485,1.84857783,111640.0,111620.0,0.05427]
[1756344085686,0.43041886,111630.0,111620.0,0.02978]
[1756344085888,0.94695,111630.0,111620.0,0.14534]
[1756344086694,0.93625,111630.0,111620.0,0.54715196]
[1756344087795,0.10745,111630.0,111620.0,0.54715196]
[1756344087989,0.26105,111630.0,111620.0,0.54715196]
[1756344088685,0.10745,111630.0,111620.0,0.54715196]
[1756344089085,0.49329,111630.0,111620.0,0.54815196]
[1756344089287,0.50403,111630.0,111620.0,0.08729]
[1756344089589,1.19625886,111630.0,111620.0,0.03068]
[1756344089793,0.83403,111630.0,111620.0,0.03068]
[1756344089995,1.14625886,111630.0,111620.0,0.03068]
[1756344090392,1.59149886,111630.0,111620.0,0.14929]
[1756344090589,0.11819,111630.0,111620.0,0.14929]
[1756344090789,0.59531,111630.0,111620.0,0.46151886]
[1756344091196,0.94955,111630.0,111620.0,0.46151886]
[1756344092394,0.94955,111630.0,111620.0,0.46051886]
[1756344092590,0.94955,111630.0,111620.0,0.14829]
[1756344092791,0.94955,111630.0,111620.0,0.46051886]
[1756344093497,0.94915,111630.0,111620.0,0.46051886]
[1756344093799,1.25915,111630.0,111620.0,0.46051886]
[1756344093998,1.25915,111630.0,111620.0,0.14829]
[1756344095897,1.25915,111630.0,111620.0,0.02968]
[1756344096098,0.01821,111620.0,111610.0,0.04843228]
[1756344096298,0.78902409,111620.0,111610.0,0.06481228]
[1756344096997,0.78902409,111620.0,111610.0,0.04833228]
[1756344097398,1.58974409,111620.0,111610.0,0.04833228]
[1756344097899,1.58974409,111620.0,111610.0,0.06581228]
[1756344098901,1.58974409,111620.0,111610.0,0.04933228]
[1756344099801,1.58974409,111620.0,111610.0,0.02936]
[1756344100098,0.75902409,111620.0,111610.0,0.02936]
[1756344100401,1.65930409,111620.0,111610.0,0.04584]
[1756344100603,1.34707523,111620.0,111610.0,0.04584]
[1756344100905,1.34707523,111620.0,111610.0,0.06916]
[1756344102299,1.34707523,111620.0,111610.0,0.02936]
[1756344102501,1.65930409,111620.0,111610.0,0.0011]
[1756344103005,1.90930409,111620.0,111610.0,0.0011]
[1756344103594,1.88035409,111620.0,111600.0,0.02836]
[1756344103898,1.25984886,111610.0,111600.0,0.02836]
[1756344104103,1.61984886,111610.0,111600.0,0.02826]
[1756344104803,1.61984886,111610.0,111600.0,0.04574]
[1756344105001,1.30762,111610.0,111600.0,0.08802]
[1756344105202,1.30762,111610.0,111600.0,0.14787]
[1756344105508,0.96762,111610.0,111600.0,0.14787]
[1756344105807,0.96762,111610.0,111600.0,0.14987]
[1756344107309,0.9473,111610.0,111600.0,0.14987]
[1756344107809,1.01793186,111610.0,111600.0,0.14987]
[1756344108109,1.35793186,111610.0,111600.0,0.09002]
[1756344108513,1.35793186,111610.0,111600.0,0.03126]
[1756344108713,1.35793186,111610.0,111600.0,0.04774]
[1756344108913,1.35793186,111610.0,111600.0,0.03126]
[1756344109116,1.69396088,111610.0,111600.0,0.003]
[1756344109417,0.08492,111600.0,111590.0,0.02836]
[1756344109610,1.65745748,111600.0,111590.0,0.02826]
[1756344110116,1.65745748,111600.0,111590.0,0.04474]
[1756344110514,1.65745748,111600.0,111590.0,0.03126]
[1756344110714,0.82805748,111600.0,111590.0,0.03326]
[1756344110921,1.65733748,111600.0,111590.0,0.03326]
[1756344111216,1.70297045,111600.0,111590.0,0.04974]
[1756344111712,0.87369045,111600.0,111590.0,0.04974]
[1756344111908,1.70281045,111600.0,111590.0,0.04974]
[1756344112217,1.70281045,111600.0,111590.0,0.005]
[1756344112714,1.70273045,111600.0,111590.0,0.03326]
[1756344113220,1.39054159,111600.0,111590.0,0.04974]
[1756344113412,1.70277045,111600.0,111590.0,0.04974]
[1756344115818,1.50370341,111600.0,111590.0,0.04974]
[1756344116613,0.67462341,111600.0,111590.0,0.03326]
[1756344116818,1.50314341,111600.0,111590.0,0.03326]
[1756344119122,0.67462341,111600.0,111590.0,0.03326]
[1756344119325,1.55427045,111600.0,111590.0,0.04974]
[1756344120324,0.72587045,111600.0,111590.0,0.04974]
[1756344120527,1.55427045,111600.0,111590.0,0.04974]
[1756344121216,1.55431045,111600.0,111590.0,0.04974]
[1756344121519,0.72587045,111600.0,111590.0,0.04974]
[1756344121725,0.72587045,111600.0,111590.0,0.07306]
[1756344122024,0.89204159,111600.0,111590.0,0.14969]
[1756344122226,1.52427045,111600.0,111590.0,0.03326]
[1756344122423,1.52427045,111600.0,111590.0,0.03336]
[1756344122619,0.89204159,111600.0,111590.0,0.05105]
[1756344122819,1.53427045,111600.0,111590.0,0.05105]
[1756344124025,1.53427045,111600.0,111590.0,0.03336]
[1756344124326,1.58427045,111600.0,111590.0,0.03336]
[1756344126024,1.56475045,111600.0,111590.0,0.07239]
[1756344126724,1.71355045,111600.0,111590.0,0.07239]
[1756344127528,1.56475045,111600.0,111590.0,0.07239]
[1756344128121,1.56475045,111600.0,111590.0,0.05105]
[1756344129622,0.89252159,111600.0,111590.0,0.05105]
[1756344129823,1.52475045,111600.0,111590.0,0.05105]
[1756344130721,0.89208159,111600.0,111590.0,0.46049886]
[1756344131626,0.89208159,111600.0,111590.0,0.14827]
[1756344131929,0.89208159,111600.0,111590.0,0.55010546]
[1756344132129,0.89208159,111600.0,111590.0,0.55075546]
[1756344133432,0.89208159,111600.0,111590.0,0.14892]
[1756344133628,1.20431045,111600.0,111590.0,0.09125]
[1756344133930,1.20431045,111600.0,111590.0,0.14892]
[1756344133931,1.51431045,111600.0,111590.0,0.14892]
[1756344134230,1.51431045,111600.0,111590.0,0.09125]
[1756344134428,1.51431045,111600.0,111590.0,0.07304]
[1756344135336,1.51431045,111600.0,111590.0,0.0517]
[1756344135635,1.51431045,111600.0,111590.0,0.03401]
[1756344136036,1.51431045,111600.0,111590.0,0.0517]
[1756344136533,1.20208159,111600.0,111590.0,0.07304]
[1756344136738,1.51431045,111600.0,111590.0,0.14892]
[1756344136946,1.20208159,111600.0,111590.0,0.14892]
[1756344137245,1.20431045,111600.0,111590.0,0.14892]
[1756344137938,0.89208159,111600.0,111590.0,0.14892]
[1756344139040,1.20431045,111600.0,111590.0,0.14892]
[1756344139535,1.20431045,111600.0,111590.0,0.09125]
[1756344139733,1.55431045,111600.0,111590.0,0.0051]
[1756344139929,1.89035215,111600.0,111590.0,0.02891]
[1756344140134,2.14035215,111600.0,111580.0,0.03217457]
[1756344140333,0.31222886,111590.0,111580.0,0.03217457]
[1756344140638,0.66222886,111590.0,111580.0,0.03207457]
[1756344142040,0.66222886,111590.0,111580.0,0.04976457]
[1756344142239,0.66222886,111590.0,111580.0,0.03207457]
[1756344142435,0.66222886,111590.0,111580.0,0.03407457]
[1756344143030,0.66222886,111590.0,111580.0,0.00516457]
[1756344143234,0.68601674,111590.0,111580.0,0.00316457]
[1756344143949,1.20222788,111590.0,111580.0,0.04976457]
[1756344144241,0.82848,111590.0,111580.0,0.45921343]
[1756344144447,1.15248,111590.0,111580.0,0.45921343]
[1756344144639,1.15248,111590.0,111580.0,0.14698457]
[1756344144942,1.14248,111590.0,111580.0,0.14698457]
[1756344145142,0.8728,111590.0,111580.0,0.14698457]
[1756344145344,0.8738,111590.0,111580.0,0.14698457]
[1756344145644,0.045,111590.0,111580.0,0.14698457]
[1756344145844,0.8738,111590.0,111580.0,0.14698457]
[1756344146046,1.51602886,111590.0,111580.0,0.03207457]
[1756344146245,1.51602886,111590.0,111580.0,0.00316457]
[1756344146548,1.76602886,111590.0,111570.0,0.02901]
[1756344146745,0.31222886,111580.0,111570.0,0.02901]
[1756344146937,0.67002943,111580.0,111570.0,0.02891]
[1756344147937,0.67002943,111580.0,111570.0,0.0466]
[1756344148142,0.67002943,111580.0,111570.0,0.06794]
[1756344148342,0.67102943,111580.0,111570.0,0.06794]
[1756344149440,0.67202943,111580.0,111570.0,0.02891]
[1756344149736,0.67202943,111580.0,111570.0,0.04613]
[1756344151043,1.50082943,111580.0,111570.0,0.14405]
[1756344151544,0.82082943,111580.0,111570.0,0.14405]
[1756344151846,1.31881026,111580.0,111570.0,0.14405]
[1756344152844,1.27881026,111580.0,111570.0,0.09128]
[1756344153047,1.60881026,111580.0,111570.0,0.02891]
[1756344153241,0.9665814,111580.0,111570.0,0.02891]
[1756344153549,1.65881026,111580.0,111570.0,0.02891]
[1756344153736,1.0065814,111580.0,111570.0,0.12478]
[1756344153942,1.59881026,111580.0,111570.0,0.12478]
[1756344154345,1.59881026,111580.0,111570.0,0.14405]
[1756344155046,1.59881026,111580.0,111570.0,0.02891]
[1756344155848,1.59881026,111580.0,111570.0,0.04613]
[1756344156049,1.59881026,111580.0,111570.0,0.12478]
[1756344156348,1.59881026,111580.0,111570.0,0.10068]
[1756344156544,1.59881026,111580.0,111570.0,0.06718]
[1756344157344,1.59881026,111580.0,111570.0,0.11995]
[1756344157544,1.28905026,111580.0,111570.0,0.14405]
[1756344157849,1.65909026,111580.0,111570.0,0.14405]
[1756344158045,0.83025026,111580.0,111570.0,0.14405]
[1756344158348,0.9768214,111580.0,111570.0,0.45627886]
[1756344158548,0.9769014,111580.0,111570.0,0.45627886]
[1756344159145,0.1480214,111580.0,111570.0,0.45627886]
[1756344159346,0.9771414,111580.0,111570.0,0.14405]
[1756344159643,1.58937026,111580.0,111570.0,0.02891]
[1756344159848,1.2771414,111580.0,111570.0,0.04613]
[1756344160149,1.58937026,111580.0,111570.0,0.04613]
[1756344160349,1.58937026,111580.0,111570.0,0.06718]
[1756344160753,1.58937026,111580.0,111570.0,0.14405]
[1756344161546,1.31937026,111580.0,111570.0,0.14405]
[1756344162050,0.49025026,111580.0,111570.0,0.14405]
[1756344162246,1.31949026,111580.0,111570.0,0.14405]
[1756344162748,1.0072614,111580.0,111570.0,0.14405]
[1756344164354,1.31949026,111580.0,111570.0,0.14405]
[1756344167154,1.31949026,111580.0,111570.0,0.11995]
[1756344167353,1.31949026,111580.0,111570.0,0.14405]
[1756344171249,0.1780214,111580.0,111570.0,0.14405]
[1756344171445,1.31989026,111580.0,111570.0,0.14405]
[1756344171770,1.0076614,111580.0,111570.0,0.2336726]
[1756344172253,1.0076614,111580.0,111570.0,0.14405]
[1756344173056,1.0076614,111580.0,111570.0,0.54590146]
[1756344173057,0.05980057,111580.0,111570.0,0.54590146]
[1756344173244,0.88936057,111580.0,111570.0,0.54590146]
[1756344173942,0.05980057,111580.0,111570.0,0.54590146]
[1756344174149,0.88912057,111580.0,111570.0,0.79590146]
[1756344174650,0.05980057,111580.0,111570.0,0.79590146]
[1756344174851,0.88916057,111580.0,111570.0,0.96590146]
[1756344175353,0.88916057,111580.0,111570.0,1.04580749]
[1756344175848,0.88916057,111580.0,111570.0,0.96580749]
[1756344176059,0.88916057,111580.0,111570.0,1.04580749]
[1756344176251,0.88816057,111580.0,111570.0,0.87580749]
[1756344176555,0.88716057,111580.0,111570.0,1.04580749]
[1756344177151,0.05780057,111580.0,111570.0,1.04580749]
[1756344177347,0.88728057,111580.0,111570.0,0.87580749]
[1756344178156,1.19950943,111580.0,111570.0,0.39405]
[1756344178660,0.88728057,111580.0,111570.0,0.39405]
[1756344178852,1.15950943,111580.0,111570.0,0.11055]
[1756344179052,1.48950943,111580.0,111570.0,0.08645]
[1756344179253,1.48950943,111580.0,111570.0,0.14504]
[1756344179861,1.17728057,111580.0,111570.0,0.14504]
[1756344180055,1.49050943,111580.0,111570.0,0.14504]
[1756344180361,0.84928057,111580.0,111570.0,0.14504]
[1756344181156,1.19928057,111580.0,111570.0,0.14504]